fUST/lending_fUST_20250817
["ID","MTS","AMOUNT","RATE_DAILY","PERIOD"]
[379805700,1755414641162,-480.0,0.00019887,2]
[379805701,1755414641171,-480.0,0.00019887,2]
[379805702,1755414641181,-480.0,0.00019887,2]
[379805703,1755414641190,-480.0,0.00019887,2]
[379805704,1755414641199,-480.0,0.00019887,2]
[379805705,1755414641208,-480.0,0.00019887,2]
[379805706,1755414641217,-480.0,0.00019887,2]
[379805707,1755414641226,-480.0,0.00019887,2]
[379805708,1755414641235,-480.0,0.00019887,2]
[379805709,1755414641244,-480.0,0.00019887,2]
[379805710,1755414641254,-480.0,0.00019887,2]
[379805711,1755414641396,-480.0,0.00019887,2]
[379805712,1755414641406,-480.0,0.00019887,2]
[379805713,1755414641415,-480.0,0.00019887,2]
[379805714,1755414641426,-380.0,0.00019887,2]
[379805715,1755414641435,-480.0,0.00019887,2]
[379805716,1755414641444,-442.43015566,0.00019887,2]
[379805717,1755414641455,-480.0,0.00019887,2]
[379805718,1755414641465,-500.0,0.00019887,2]
[379805719,1755414641475,-481.52798572,0.00019888,2]
[379805720,1755414641484,-480.0,0.00019888,2]
[379805721,1755414641494,-480.82185931,0.00019888,2]
[379805722,1755414641506,-480.0,0.00019888,2]
[379805723,1755414641517,-460.90478405,0.00019888,2]
[379805724,1755414641528,-380.0,0.00019888,2]
[379805725,1755414641537,-480.0,0.00019888,2]
[379805726,1755414641547,-500.0,0.00019888,2]
[379805727,1755414641556,-500.0,0.00019888,2]
[379805728,1755414641565,-500.0,0.00019888,2]
[379805729,1755414641575,-500.0,0.00019888,2]
[379805730,1755414641584,-500.0,0.00019888,2]
[379805731,1755414641594,-480.0,0.00019888,2]
[379805732,1755414641603,-241.17545315,0.00019888,2]
[379805733,1755414641613,-480.0,0.00019888,2]
[379805734,1755414641622,-480.0,0.00019888,2]
[379805735,1755414641631,-480.0,0.00019888,2]
[379805736,1755414641640,-480.0,0.00019888,2]
[379805737,1755414641650,-480.0,0.00019888,2]
[379805738,1755414641659,-663.34,0.00019888,2]
[379805739,1755414641668,-480.0,0.00019888,2]
[379805740,1755414641678,-480.0,0.00019888,2]
[379805741,1755414641688,-480.0,0.00019888,2]
[379805742,1755414641697,-1000.0,0.00019888,2]
[379805743,1755414641706,-1000.0,0.00019888,2]
[379805744,1755414641715,-1000.0,0.00019888,2]
[379805745,1755414641725,-1000.0,0.00019888,2]
[379805746,1755414641734,-1000.0,0.00019888,2]
[379805747,1755414641743,-1000.0,0.00019888,2]
[379805748,1755414641753,-1000.0,0.00019888,2]
[379805749,1755414641762,-1000.0,0.00019888,2]
[379805750,1755414641772,-1000.0,0.00019888,2]
[379805751,1755414641781,-480.0,0.00019888,2]
[379805752,1755414641790,-480.0,0.00019888,2]
[379805753,1755414641799,-480.0,0.00019888,2]
[379805754,1755414641809,-480.0,0.00019888,2]
[379805755,1755414641819,-480.0,0.00019888,2]
[379805756,1755414641828,-480.0,0.00019888,2]
[379805757,1755414641837,-480.0,0.00019888,2]
[379805758,1755414641847,-480.0,0.00019888,2]
[379805759,1755414641856,-528.65364038,0.00019888,2]
[379805760,1755414641865,-556.16,0.00019888,2]
[379805761,1755414641874,-480.0,0.00019888,2]
[379805762,1755414641884,-440.0,0.00019888,2]
[379805763,1755414641893,-1101.38,0.00019888,2]
[379805764,1755414641902,-480.0,0.00019888,2]
[379805765,1755414641911,-480.0,0.00019888,2]
[379805766,1755414641921,-480.0,0.00019888,2]
[379805767,1755414641930,-442.01476653,0.00019888,2]
[379805768,1755414641939,-485.16956893,0.00019888,2]
[379805769,1755414641949,-480.0,0.00019888,2]
[379805770,1755414641958,-460.0,0.00019888,2]
[379805771,1755414641967,-480.0,0.00019888,2]
[379805772,1755414641977,-480.0,0.00019888,2]
[379805773,1755414641986,-480.0,0.00019888,2]
[379805774,1755414641995,-480.0,0.00019888,2]
[379805775,1755414642004,-480.0,0.00019888,2]
[379805776,1755414642013,-500.0,0.00019888,2]
[379805777,1755414642022,-500.0,0.00019888,2]
[379805778,1755414642031,-500.0,0.00019888,2]
[379805779,1755414642040,-500.0,0.00019888,2]
[379805780,1755414642050,-162.82922511,0.00019888,2]
[379805781,1755414642059,-480.0,0.00019888,2]
[379805782,1755414642068,-1555.9,0.00019888,2]
[379805783,1755414642078,-480.0,0.00019888,2]
[379805784,1755414642087,-500.0,0.00019888,2]
[379805785,1755414642096,-500.0,0.00019888,2]
[379805786,1755414642105,-500.0,0.00019888,2]
[379805787,1755414642117,-500.0,0.00019888,2]
[379805788,1755414642128,-500.0,0.00019888,2]
[379805789,1755414642138,-500.0,0.00019888,2]
[379805790,1755414642151,-500.0,0.00019888,2]
[379805791,1755414642178,-500.0,0.00019888,2]
[379805792,1755414642201,-491.93,0.00019888,2]
[379805793,1755414642222,-500.0,0.00019888,2]
[379805794,1755414642231,-480.0,0.00019888,2]
[379805795,1755414642240,-480.0,0.00019888,2]
[379805796,1755414642250,-480.0,0.00019888,2]
[379805797,1755414642258,-480.0,0.00019888,2]
[379805798,1755414642267,-480.0,0.00019888,2]
[379805799,1755414642276,-480.0,0.00019888,2]
[379805800,1755414642286,-480.0,0.00019888,2]
[379805801,1755414642295,-151.0,0.000199,2]
[379805802,1755414642303,-571.70921904,0.000199,2]
[379805803,1755414642312,-169.0,0.00019902,2]
[379805804,1755414642321,-1082.44595013,0.00019941,2]
[379805805,1755414642336,-169.0,0.00019948,2]
[379805806,1755414642350,-1000.0,0.00019948,2]
[379805807,1755414642359,-1000.0,0.00019948,2]
[379805808,1755414642368,-500.0,0.00019948,2]
[379805809,1755414642377,-500.0,0.00019948,2]
[379805810,1755414642386,-169.0,0.00019961,2]
[379805811,1755414642395,-1000.0,0.0001997,2]
[379805812,1755414642404,-500.0,0.0001997,2]
[379805813,1755414642414,-500.0,0.0001997,2]
[379805814,1755414642423,-420.50321193,0.0001997,2]
[379805815,1755414642433,-480.0,0.00019971,2]
[379805816,1755414642442,-484.78674096,0.00019971,2]
[379805817,1755414642452,-480.0,0.00019971,2]
[379805818,1755414642461,-1000.0,0.00019971,2]
[379805819,1755414642471,-1000.0,0.00019988,2]
[379805820,1755414642481,-151.402041,0.0001999,2]
[379805821,1755414642491,-3229.38208033,0.0001999,2]
[379805822,1755414642500,-874.9740542,0.00019998,2]
[379805823,1755414642509,-151.0,0.0002,4]
[379805824,1755414642518,-500.0,0.0002,2]
[379805825,1755414642527,-500.0,0.00020061,2]
[379805826,1755414642536,-5905.86126711,0.00020061,2]
[379805827,1755414642545,-481.88778786,0.00020062,2]
[379805828,1755414642555,-480.0,0.00020062,2]
[379805829,1755414642564,-480.0,0.00020062,2]
[379805830,1755414642574,-480.0,0.00020062,2]
[379805831,1755414642583,-480.0,0.00020062,2]
[379805832,1755414642593,-480.0,0.00020062,2]
[379805833,1755414642602,-480.0,0.00020062,2]
[379805834,1755414642611,-480.0,0.00020062,2]
[379805835,1755414642620,-407.18596913,0.00020062,2]
[379805836,1755414642629,-480.0,0.00020062,2]
[379805837,1755414642639,-480.0,0.00020062,2]
[379805838,1755414642648,-460.0,0.00020062,2]
[379805839,1755414642657,-535.69,0.00020062,2]
[379805840,1755414642669,-480.0,0.00020062,2]
[379805841,1755414642679,-480.0,0.00020062,2]
[379805842,1755414642688,-480.0,0.00020062,2]
[379805843,1755414642698,-480.0,0.00020062,2]
[379805844,1755414642707,-480.0,0.00020062,2]
[379805845,1755414642717,-893.71,0.00020062,2]
[379805846,1755414642726,-480.0,0.00020062,2]
[379805847,1755414642735,-480.0,0.00020062,2]
[379805848,1755414642744,-480.0,0.00020062,2]
[379805849,1755414642753,-442.95328827,0.00020062,2]
[379805851,1755414642763,-461.83415373,0.00020062,2]
[379805852,1755414642772,-480.0,0.00020062,2]
[379805853,1755414642781,-480.0,0.00020062,2]
[379805854,1755414642790,-460.0,0.00020062,2]
[379805855,1755414642799,-480.0,0.00020062,2]
[379805856,1755414642808,-480.0,0.00020062,2]
[379805857,1755414642818,-480.0,0.00020062,2]
[379805858,1755414642827,-480.0,0.00020062,2]
[379805859,1755414642836,-480.0,0.00020062,2]
[379805860,1755414642845,-1148.62,0.00020062,2]
[379805861,1755414642854,-480.0,0.00020062,2]
[379805862,1755414642863,-460.0,0.00020062,2]
[379805863,1755414642873,-480.0,0.00020062,2]
[379805864,1755414642882,-380.0,0.00020062,2]
[379805865,1755414642892,-460.0,0.00020062,2]
[379805866,1755414642901,-249.60951735,0.00020062,2]
[379805867,1755414642910,-621.59,0.00020062,2]
[379805868,1755414642920,-480.0,0.00020062,2]
[379805869,1755414642930,-576.84,0.00020062,2]
[379805870,1755414642939,-480.0,0.00020062,2]
[379805871,1755414642949,-175.84362596,0.00020062,2]
[379805872,1755414642959,-480.0,0.00020062,2]
[379805873,1755414642969,-480.0,0.00020062,2]
[379805874,1755414642979,-480.0,0.00020062,2]
[379805875,1755414642988,-480.0,0.00020062,2]
[379805876,1755414642997,-480.0,0.00020062,2]
[379805877,1755414643006,-480.0,0.00020062,2]
[379805878,1755414643016,-485.11643174,0.00020062,2]
[379805879,1755414643026,-1822.79,0.00020062,2]
[379805880,1755414643036,-480.0,0.00020062,2]
[379805881,1755414643046,-462.0224702,0.00020062,2]
[379805882,1755414643056,-480.0,0.00020062,2]
[379805883,1755414643066,-1646.01,0.00020062,2]
[379805884,1755414643076,-480.0,0.00020062,2]
[379805885,1755414643086,-481.31538808,0.00020062,2]
[379805886,1755414643097,-480.0,0.00020062,2]
[379805887,1755414643107,-480.0,0.00020062,2]
[379805888,1755414643120,-321.37116679,0.00020062,2]
[379805889,1755414643130,-460.0,0.00020062,2]
[379805890,1755414643139,-480.0,0.00020062,2]
[379805891,1755414643148,-480.0,0.00020062,2]
[379805892,1755414643157,-480.0,0.00020062,2]
[379805893,1755414643166,-480.0,0.00020062,2]
[379805894,1755414643175,-460.9486442,0.00020062,2]
[379805895,1755414643187,-480.0,0.00020062,2]
[379805896,1755414643197,-480.0,0.00020062,2]
[379805897,1755414643206,-480.0,0.00020062,2]
[379805898,1755414643216,-460.0,0.00020062,2]
[379805899,1755414643225,-480.0,0.00020062,2]
[379805900,1755414643235,-480.0,0.00020062,2]
[379805901,1755414643246,-480.0,0.00020062,2]
[379805902,1755414643255,-480.0,0.00020062,2]
[379805903,1755414643265,-480.0,0.00020062,2]
[379805904,1755414643275,-480.0,0.00020062,2]
[379805905,1755414643284,-480.0,0.00020062,2]
[379805906,1755414643293,-480.0,0.00020062,2]
[379805907,1755414643303,-480.0,0.00020062,2]
[379805908,1755414643312,-6414.92,0.00020062,2]
[379805909,1755414643322,-441.11900143,0.00020062,2]
[379805910,1755414643332,-480.0,0.00020062,2]
[379805911,1755414643341,-480.0,0.00020062,2]
[379805912,1755414643351,-480.0,0.00020062,2]
[379805913,1755414643362,-480.0,0.00020062,2]
[379805914,1755414643371,-480.0,0.00020062,2]
[379805915,1755414643381,-480.0,0.00020062,2]
[379805916,1755414643390,-480.0,0.00020062,2]
[379805917,1755414643399,-480.0,0.00020062,2]
[379805918,1755414643408,-480.0,0.00020062,2]
[379805919,1755414643417,-480.0,0.00020062,2]
[379805920,1755414643427,-480.0,0.00020062,2]
[379805921,1755414643436,-487.5502636,0.00020062,2]
[379805922,1755414643445,-481.83062055,0.00020062,2]
[379805923,1755414643454,-551.94,0.00020062,2]
[379805924,1755414643463,-480.0,0.00020062,2]
[379805925,1755414643473,-514.18,0.00020062,2]
[379805926,1755414643482,-490.0033101,0.00020062,2]
[379805927,1755414643491,-480.0,0.00020062,2]
[379805928,1755414643501,-480.0,0.00020062,2]
[379805929,1755414643510,-483.13500043,0.00020062,2]
[379805930,1755414643519,-480.0,0.00020062,2]
[379805931,1755414643528,-480.0,0.00020062,2]
[379805932,1755414643538,-480.0,0.00020062,2]
[379805933,1755414643546,-732.66,0.00020062,2]
[379805934,1755414643556,-480.0,0.00020062,2]
[379805935,1755414643565,-480.0,0.00020062,2]
[379805936,1755414643575,-480.0,0.00020062,2]
[379805937,1755414643585,-480.0,0.00020062,2]
[379805938,1755414643594,-469.0439856,0.00020062,2]
[379805939,1755414643603,-480.0,0.00020062,2]
[379805940,1755414643612,-480.0,0.00020062,2]
[379805941,1755414643622,-480.0,0.00020062,2]
[379805942,1755414643631,-480.0,0.00020062,2]
[379805943,1755414643640,-480.0,0.00020062,2]
[379805944,1755414643650,-480.0,0.00020062,2]
[379805945,1755414643659,-480.0,0.00020062,2]
[379805946,1755414643668,-480.0,0.00020062,2]
[379805947,1755414643678,-480.0,0.00020062,2]
[379805948,1755414643687,-480.0,0.00020062,2]
[379805949,1755414643697,-480.0,0.00020062,2]
[379805950,1755414643706,-480.0,0.00020062,2]
[379805951,1755414643715,-480.0,0.00020062,2]
[379805952,1755414643724,-480.0,0.00020062,2]
[379805953,1755414643733,-480.0,0.00020062,2]
[379805954,1755414643743,-480.0,0.00020062,2]
[379805955,1755414643752,-480.0,0.00020062,2]
[379805956,1755414643761,-367.87349595,0.00020062,2]
[379805957,1755414643770,-460.46415229,0.00020062,2]
[379805958,1755414643779,-480.0,0.00020062,2]
[379805959,1755414643788,-480.0,0.00020062,2]
[379805960,1755414643798,-480.0,0.00020062,2]
[379805961,1755414643807,-480.0,0.00020062,2]
[379805962,1755414643816,-1082.44595013,0.00020094,2]
[379805963,1755414643825,-151.0,0.000201,3]
[379805964,1755414643835,-160.7608968,0.00020105,2]
[379805965,1755414643844,-293.7439445,0.00020105,2]
[379805966,1755414643853,-500.0,0.0002016,2]
[379805967,1755414643862,-480.0,0.0002016,2]
[379805968,1755414643872,-480.0,0.0002016,2]
[379805969,1755414643881,-480.0,0.0002016,2]
[379805970,1755414643891,-1003.58,0.0002016,2]
[379805971,1755414643900,-1542.42,0.0002016,2]
[379805972,1755414643910,-522.63,0.0002016,2]
[379805973,1755414643920,-995.53,0.0002016,2]
[379805974,1755414643929,-480.0,0.0002016,2]
[379805975,1755414643938,-480.0,0.0002016,2]
[379805976,1755414643948,-480.0,0.0002016,2]
[379805977,1755414643958,-480.0,0.0002016,2]
[379805978,1755414643967,-1337.7,0.0002016,2]
[379805979,1755414643977,-480.0,0.0002016,2]
[379805980,1755414643987,-2855.58,0.0002016,2]
[379805981,1755414643996,-480.0,0.0002016,2]
[379805982,1755414644005,-480.0,0.0002016,2]
[379805983,1755414644014,-480.0,0.0002016,2]
[379805984,1755414644023,-441.0783054,0.0002016,2]
[379805985,1755414644033,-480.0,0.0002016,2]
[379805986,1755414644042,-480.0,0.0002016,2]
[379805987,1755414644051,-959.07,0.0002016,2]
[379805988,1755414644060,-480.0,0.00020161,2]
[379805989,1755414644069,-480.0,0.00020161,2]
[379805990,1755414644079,-480.0,0.00020161,2]
[379805991,1755414644088,-440.0,0.00020161,2]
[379805992,1755414644097,-476.24542636,0.00020161,2]
[379805993,1755414644106,-442.24178609,0.00020161,2]
[379805994,1755414644117,-440.94260457,0.00020161,2]
[379805995,1755414644127,-420.0,0.00020161,2]
[379805996,1755414644136,-480.0,0.00020161,2]
[379805997,1755414644145,-533.93,0.00020161,2]
[379805998,1755414644155,-443.35525374,0.00020161,2]
[379805999,1755414644165,-480.0,0.00020161,2]
[379806000,1755414644174,-480.0,0.00020161,2]
[379806001,1755414644185,-515.0,0.00020161,2]
[379806002,1755414644195,-480.0,0.00020161,2]
[379806003,1755414644205,-480.0,0.00020161,2]
[379806004,1755414644214,-480.0,0.00020161,2]
[379806005,1755414644223,-480.0,0.00020161,2]
[379806006,1755414644233,-480.0,0.00020161,2]
[379806007,1755414644242,-480.0,0.00020161,2]
[379806008,1755414644251,-480.0,0.00020161,2]
[379806009,1755414644261,-480.0,0.00020161,2]
[379806010,1755414644270,-460.0,0.00020161,2]
[379806011,1755414644279,-480.0,0.00020161,2]
[379806012,1755414644288,-480.0,0.00020161,2]
[379806013,1755414644298,-480.0,0.00020161,2]
[379806014,1755414644308,-480.0,0.00020161,2]
[379806015,1755414644318,-480.0,0.00020161,2]
[379806016,1755414644327,-460.0,0.00020161,2]
[379806017,1755414644337,-480.0,0.00020161,2]
[379806019,1755414644347,-480.0,0.00020161,2]
[379806021,1755414644356,-480.0,0.00020161,2]
[379806023,1755414644366,-480.0,0.00020161,2]
[379806024,1755414644375,-480.0,0.00020161,2]
[379806025,1755414644384,-380.0,0.00020161,2]
[379806026,1755414644393,-480.0,0.00020161,2]
[379806027,1755414644403,-480.0,0.00020161,2]
[379806028,1755414644412,-480.0,0.00020161,2]
[379806029,1755414644421,-480.0,0.00020161,2]
[379806030,1755414644431,-480.0,0.00020161,2]
[379806031,1755414644441,-480.0,0.00020161,2]
[379806032,1755414644450,-480.0,0.00020161,2]
[379806033,1755414644459,-480.0,0.00020161,2]
[379806034,1755414644469,-480.0,0.00020161,2]
[379806035,1755414644478,-480.0,0.00020161,2]
[379806036,1755414644488,-480.0,0.00020161,2]
[379806037,1755414644497,-460.0,0.00020161,2]
[379806038,1755414644507,-480.0,0.00020161,2]
[379806039,1755414644516,-480.0,0.00020161,2]
[379806040,1755414644525,-480.0,0.00020161,2]
[379806041,1755414644535,-480.0,0.00020161,2]
[379806042,1755414644545,-480.0,0.00020161,2]
[379806043,1755414644555,-480.0,0.00020161,2]
[379806045,1755414644564,-480.0,0.00020161,2]
[379806047,1755414644573,-440.0,0.00020161,2]
[379806048,1755414644583,-480.0,0.00020161,2]
[379806049,1755414644592,-480.0,0.00020161,2]
[379806050,1755414644720,-480.0,0.00020161,2]
[379806052,1755414644731,-480.0,0.00020161,2]
[379806054,1755414644741,-480.0,0.00020161,2]
[379806055,1755414644750,-480.0,0.00020161,2]
[379806057,1755414644759,-480.0,0.00020161,2]
[379806058,1755414644769,-480.0,0.00020161,2]
[379806059,1755414644778,-480.0,0.00020161,2]
[379806060,1755414644787,-480.0,0.00020161,2]
[379806061,1755414644798,-480.0,0.00020161,2]
[379806063,1755414644807,-480.0,0.00020161,2]
[379806065,1755414644817,-860.61,0.00020161,2]
[379806067,1755414644826,-480.0,0.00020161,2]
[379806069,1755414644836,-480.0,0.00020161,2]
[379806071,1755414644846,-480.0,0.00020161,2]
[379806073,1755414644855,-480.0,0.00020161,2]
[379806075,1755414644864,-480.0,0.00020161,2]
[379806077,1755414644873,-480.0,0.00020161,2]
[379806079,1755414644883,-480.0,0.00020161,2]
[379806081,1755414644892,-480.0,0.00020161,2]
[379806083,1755414644901,-354.93110207,0.00020161,2]
[379806084,1755414644911,-480.0,0.00020161,2]
[379806085,1755414644921,-480.0,0.00020161,2]
[379806086,1755414644931,-480.0,0.00020161,2]
[379806087,1755414644940,-480.0,0.00020161,2]
[379806088,1755414644950,-480.0,0.00020161,2]
[379806089,1755414644960,-480.0,0.00020161,2]
[379806090,1755414644969,-480.0,0.00020161,2]
[379806091,1755414644978,-480.0,0.00020161,2]
[379806092,1755414644987,-480.0,0.00020161,2]
[379806093,1755414644996,-497.19,0.00020161,2]
[379806094,1755414645006,-260.46298046,0.00020161,2]
[379806095,1755414645016,-480.0,0.00020161,2]
[379806096,1755414645025,-480.0,0.00020161,2]
[379806097,1755414645035,-340.0,0.00020161,2]
[379806098,1755414645044,-264.47402307,0.00020161,2]
[379806099,1755414645054,-480.0,0.00020161,2]
[379806100,1755414645065,-480.0,0.00020161,2]
[379806101,1755414645074,-480.0,0.00020161,2]
[379806102,1755414645083,-480.0,0.00020161,2]
[379806103,1755414645093,-361.98722825,0.00020161,2]
[379806104,1755414645103,-480.0,0.00020161,2]
[379806105,1755414645113,-480.0,0.00020161,2]
[379806106,1755414645127,-480.0,0.00020161,2]
[379806107,1755414645137,-480.0,0.00020161,2]
[379806108,1755414645147,-480.0,0.00020161,2]
[379806109,1755414645156,-480.0,0.00020161,2]
[379806110,1755414645166,-480.0,0.00020161,2]
[379806111,1755414645176,-480.0,0.00020161,2]
[379806112,1755414645186,-480.0,0.00020161,2]
[379806113,1755414645195,-476.0,0.00020161,2]
[379806114,1755414645205,-480.0,0.00020161,2]
[379806115,1755414645215,-480.0,0.00020161,2]
[379806116,1755414645225,-480.0,0.00020161,2]
[379806117,1755414645235,-480.0,0.00020161,2]
[379806118,1755414645245,-480.0,0.00020161,2]
[379806119,1755414645255,-6884.82,0.00020161,2]
[379806120,1755414645264,-480.0,0.00020161,2]
[379806121,1755414645274,-480.0,0.00020161,2]
[379806122,1755414645283,-480.0,0.00020161,2]
[379806123,1755414645293,-480.0,0.00020161,2]
[379806124,1755414645302,-965.49,0.00020161,2]
[379806125,1755414645312,-480.0,0.00020161,2]
[379806126,1755414645321,-480.0,0.00020161,2]
[379806127,1755414645331,-480.0,0.00020161,2]
[379806128,1755414645340,-500.0,0.00020161,2]
[379806129,1755414645349,-480.0,0.00020161,2]
[379806130,1755414645358,-480.0,0.00020161,2]
[379806131,1755414645369,-480.0,0.00020161,2]
[379806132,1755414645378,-462.01136745,0.00020161,2]
[379806133,1755414645387,-4724.13,0.00020161,2]
[379806134,1755414645397,-480.0,0.00020161,2]
[379806135,1755414645406,-480.0,0.00020161,2]
[379806136,1755414645416,-480.0,0.00020161,2]
[379806137,1755414645428,-480.0,0.00020161,2]
[379806138,1755414645436,-443.96229288,0.00020161,2]
[379806139,1755414645446,-480.0,0.00020161,2]
[379806140,1755414645455,-487.43999796,0.00020161,2]
[379806141,1755414645465,-480.0,0.00020161,2]
[379806142,1755414645475,-480.0,0.00020162,2]
[379806143,1755414645485,-480.0,0.00020162,2]
[379806144,1755414645495,-480.0,0.00020162,2]
[379806145,1755414645505,-485.68986289,0.00020162,2]
[379806146,1755414645515,-482.00036506,0.00020162,2]
[379806147,1755414645525,-481.91571568,0.00020162,2]
[379806148,1755414645535,-480.0,0.00020162,2]
[379806149,1755414645544,-484.97103451,0.00020162,2]
[379806150,1755414645554,-663.34,0.00020162,2]
[379806151,1755414645563,-480.0,0.00020162,2]
[379806152,1755414645573,-408.27380012,0.00020162,2]
[379806153,1755414645582,-481.83732519,0.00020162,2]
[379806154,1755414645592,-462.31999916,0.00020162,2]
[379806155,1755414645601,-480.0,0.00020162,2]
[379806156,1755414645611,-480.0,0.00020162,2]
[379806157,1755414645620,-480.0,0.00020162,2]
[379806158,1755414645630,-480.0,0.00020162,2]
[379806159,1755414645640,-480.0,0.00020162,2]
[379806160,1755414645649,-483.77610987,0.00020162,2]
[379806161,1755414645660,-466.53993148,0.00020162,2]
[379806162,1755414645669,-424.67426976,0.00020162,2]
[379806163,1755414645679,-1101.38,0.00020162,2]
[379806164,1755414645689,-384.61651063,0.00020162,2]
[379806165,1755414645700,-480.0,0.00020162,2]
[379806166,1755414645709,-480.0,0.00020162,2]
[379806167,1755414645718,-480.0,0.00020162,2]
[379806168,1755414645727,-480.0,0.00020162,2]
[379806169,1755414645737,-480.0,0.00020162,2]
[379806170,1755414645746,-528.22,0.00020162,2]
[379806171,1755414645756,-480.0,0.00020162,2]
[379806172,1755414645766,-480.0,0.00020162,2]
[379806173,1755414645775,-480.0,0.00020162,2]
[379806174,1755414645784,-1555.9,0.00020162,2]
[379806175,1755414645793,-480.0,0.00020162,2]
[379806176,1755414645802,-480.0,0.00020162,2]
[379806177,1755414645812,-480.0,0.00020162,2]
[379806178,1755414645822,-480.0,0.00020162,2]
[379806179,1755414645831,-500.0,0.00020183,2]
[379806180,1755414645841,-200.0,0.00020184,20]
[379806181,1755414645850,-200.0,0.00020184,20]
[379806182,1755414645859,-200.0,0.00020184,20]
[379806183,1755414645869,-200.0,0.00020184,20]
[379806184,1755414645878,-200.0,0.00020184,20]
[379806185,1755414645887,-200.0,0.00020184,20]
[379806186,1755414645896,-200.0,0.00020184,20]
[379806187,1755414645906,-200.0,0.00020184,20]
[379806188,1755414645915,-200.0,0.00020184,20]
[379806189,1755414645925,-200.0,0.00020184,20]
[379806190,1755414645935,-600.0,0.00020184,20]
[379806191,1755414645945,-470.189501,0.00020187,2]
[379806192,1755414645954,-480.0,0.00020245,2]
[379806193,1755414645964,-151.0,0.00020246,2]
[379806195,1755414645973,-1082.44595013,0.00020247,2]
[379806197,1755414645983,-271.0,0.00020277,2]
[379806199,1755414645992,-151.0,0.000203,3]
[379806201,1755414646002,-500.0,0.00020302,2]
[379806203,1755414646012,-169.0,0.00020306,2]
[379806205,1755414646022,-5000.0,0.00020332,2]
[379806207,1755414646031,-480.0,0.00020336,2]
[379806209,1755414646041,-480.0,0.00020336,2]
[379806211,1755414646051,-626.22,0.00020336,2]
[379806213,1755414646061,-480.0,0.00020336,2]
[379806215,1755414646070,-480.0,0.00020336,2]
[379806217,1755414646080,-480.0,0.00020336,2]
[379806219,1755414646089,-556.99842484,0.00020336,2]
[379806221,1755414646099,-893.71,0.00020336,2]
[379806223,1755414646108,-480.0,0.00020336,2]
[379806225,1755414646120,-480.0,0.00020336,2]
[379806227,1755414646130,-480.0,0.00020336,2]
[379806229,1755414646139,-480.0,0.00020336,2]
[379806231,1755414646151,-483.19771566,0.00020336,2]
[379806233,1755414646161,-480.0,0.00020336,2]
[379806235,1755414646170,-1148.62,0.00020336,2]
[379806237,1755414646180,-480.0,0.00020336,2]
[379806239,1755414646190,-480.0,0.00020336,2]
[379806241,1755414646199,-480.0,0.00020336,2]
[379806243,1755414646209,-576.84,0.00020336,2]
[379806246,1755414646218,-480.0,0.00020336,2]